bitfinex-derivatives/quotes_ETHF0:USTF0_20251001
["timestamp","ask_amount","ask_price","bid_price","bid_amount"]
[1759351847448,1.1121,4327.9,4327.8,1.65851708]
[1759351847751,1.9946,4327.9,4327.8,4.49893263]
[1759351848851,1.9946,4327.9,4327.8,2.84041555]
[1759351851649,1.547,4327.9,4327.8,2.84041555]
[1759351853951,1.547,4327.9,4327.8,3.25612555]
[1759351854155,1.547,4327.9,4327.8,4.91464263]
[1759351854356,1.547,4327.9,4327.8,4.49893263]
[1759351854758,0.4157,4327.9,4327.8,4.49893263]
[1759351855056,0.4157,4327.9,4327.8,4.91464263]
[1759351859655,0.4157,4327.9,4327.8,8.12244263]
[1759351860061,1.0997,4327.9,4327.8,8.12244263]
[1759351860357,2.0473,4327.9,4327.8,5.81621555]
[1759351860559,2.0473,4327.9,4327.8,6.04821555]
[1759351861464,2.0473,4327.9,4327.8,6.52783263]
[1759351862055,2.0473,4327.9,4327.8,7.63573263]
[1759351862256,2.0473,4327.9,4327.8,7.48920494]
[1759351864661,2.0473,4327.9,4327.8,5.83068786]
[1759351865463,0.88797,4328.2,4328.1,1.1079]
[1759351865660,0.88797,4328.2,4328.1,2.62828786]
[1759351865661,0.4723,4328.2,4328.1,2.62828786]
[1759351865966,5.25502,4328.8,4328.7,1.5675]
[1759351866267,5.25502,4328.8,4328.7,2.62828786]
[1759351866458,5.25502,4328.8,4328.7,2.39628786]
[1759351866657,5.25502,4328.8,4328.7,2.62828786]
[1759351866966,3.2078,4328.8,4328.7,2.62828786]
[1759351867160,3.2078,4328.8,4328.7,3.87269572]
[1759351867357,0.4156,4329.0,4328.7,3.04390786]
[1759351867563,0.4156,4329.0,4328.9,2.39628786]
[1759351867762,0.41558,4329.2,4329.1,0.9204]
[1759351867961,1.57188,4329.2,4329.1,1.7995]
[1759351868158,0.41558,4329.2,4329.1,1.7995]
[1759351868364,0.41558,4329.2,4329.1,5.0073]
[1759351869159,1.09957,4329.3,4329.2,0.6471]
[1759351869473,0.41557,4329.3,4329.2,2.39628786]
[1759351871063,1.57187,4329.3,4329.2,2.39628786]
[1759351871470,2.04717,4329.3,4329.2,2.62828786]
[1759351872170,2.04717,4329.3,4329.2,1.98118786]
[1759351872365,2.04717,4329.3,4329.2,1.52038786]
[1759351872871,2.04717,4329.3,4329.2,2.16748786]
[1759351874877,2.04717,4329.3,4329.2,2.62828786]
[1759351875279,1.57187,4329.3,4329.2,2.62828786]
[1759351876579,2.04717,4329.3,4329.2,2.62828786]
[1759351888986,2.04717,4329.3,4329.2,0.232]
[1759351889192,2.2705,4329.0,4328.9,3.2078]
[1759351889492,2.2705,4329.0,4328.9,4.26858786]
[1759351891086,2.0067,4329.0,4328.9,6.70457572]
[1759351891286,0.41559,4329.1,4329.0,0.2669]
[1759351891491,0.41558,4329.2,4329.1,1.6072]
[1759351891881,1.54028,4329.2,4329.1,1.6072]
[1759351892789,2.00669,4329.1,4329.0,0.232]
[1759351893092,2.00669,4329.1,4329.0,1.06078786]
[1759351893293,2.00669,4329.1,4329.0,1.51488786]
[1759351894799,2.00669,4329.1,4329.0,1.06078786]
[1759351899591,2.00669,4329.1,4329.0,1.51488786]
[1759351900396,2.00669,4329.1,4329.0,3.76367572]
[1759351900397,0.86589,4329.1,4329.0,3.76367572]
[1759351900599,0.41557,4329.3,4329.2,1.6072]
[1759351900896,0.41557,4329.3,4329.2,1.8392]
[1759351901098,1.08997,4329.3,4329.2,1.8392]
[1759351902488,2.00667,4329.3,4329.2,1.8392]
[1759351904100,1.54027,4329.3,4329.2,1.8392]
[1759351904698,2.00667,4329.3,4329.2,1.8392]
[1759351920306,0.41843361,4329.4,4329.3,0.6827]
[1759351920507,0.41843361,4329.4,4329.3,2.39278786]
[1759351921409,0.41843361,4329.4,4329.3,6.01615786]
[1759351921410,0.00287361,4329.4,4329.3,6.01615786]
[1759351922808,0.00287361,4329.4,4329.3,6.19721239]
[1759351923013,0.00287361,4329.4,4329.3,6.01615786]
[1759351923209,0.00287361,4329.4,4329.3,46.81615786]
[1759351924218,0.00287361,4329.4,4329.3,46.96197468]
[1759351927616,0.6833,4330.2,4329.7,0.41552]
[1759351927919,0.6833,4330.2,4330.1,2.53860468]
[1759351928116,1.55528,4330.2,4330.1,2.77060468]
[1759351928615,0.45933935,4330.2,4330.1,3.18907078]
[1759351928822,0.00283935,4330.2,4330.1,2.77358078]
[1759351929022,0.00283935,4330.2,4330.1,3.18907078]
[1759351932814,0.00283935,4330.2,4330.1,43.98907078]
[1759351947636,0.02201712,4330.8,4330.2,1.03871]
[1759351947833,1.98314712,4330.8,4330.7,1.4869]
[1759351948040,1.98314712,4330.8,4330.7,2.69350468]
[1759351948238,1.98314712,4330.8,4330.7,43.49350468]
[1759351948740,1.98585308,4330.8,4330.7,43.49350468]
[1759351949135,0.02472308,4330.8,4330.7,43.90893468]
[1759351949842,0.44014308,4330.8,4330.7,43.90893468]
[1759351950039,1.11054308,4330.8,4330.7,43.49350468]
[1759351950438,1.11054308,4330.8,4330.7,43.90893468]
[1759351951041,0.02472308,4330.8,4330.7,43.90893468]
[1759351952340,0.6704,4331.4,4331.3,1.28318]
[1759351952641,1.08576,4331.5,4331.4,1.4869]
[1759351952843,1.51256,4331.5,4331.4,1.4869]
[1759351953441,0.0020029,4331.5,4331.4,1.4869]
[1759351953844,0.6704,4331.8,4331.7,0.8678]
[1759351954041,0.6704,4331.8,4331.7,2.69350468]
[1759351954246,1.08573,4331.8,4331.7,2.69350468]
[1759351954542,1.51253,4331.8,4331.7,2.69350468]
[1759351954930,1.09893292,4331.8,4331.7,2.69350468]
[1759351955144,1.09893292,4331.8,4331.7,3.10884468]
[1759351955334,1.09893292,4331.8,4331.7,2.69350468]
[1759351956041,0.00173292,4331.8,4331.7,3.10884468]
[1759351957744,0.00173292,4331.8,4331.7,43.90884468]
[1759351957939,0.00173292,4331.8,4331.7,43.49350468]
[1759351958133,0.67213292,4331.8,4331.7,43.49350468]
[1759351958343,0.67213292,4331.8,4331.7,43.90884468]
[1759351958747,1.08746292,4331.8,4331.7,43.49350468]
[1759351960440,1.08746292,4331.8,4331.7,43.26150468]
[1759351960744,1.08746292,4331.8,4331.7,43.49350468]
[1759351960938,0.67213292,4331.8,4331.7,43.90884468]
[1759351964940,1.08746292,4331.8,4331.7,43.49350468]
[1759351965441,1.08746292,4331.8,4331.7,43.26150468]
[1759351965645,1.08746292,4331.8,4331.7,43.49350468]
[1759351966038,0.41536,4331.5,4331.4,3.8269]
[1759351966343,2.20646,4331.5,4331.4,4.506]
[1759351966543,2.20646,4331.5,4331.4,45.306]
[1759351967251,2.20646,4331.5,4331.4,4.9267]
[1759351968938,1.96106,4331.5,4331.4,4.9267]
[1759351969546,2.20646,4331.5,4331.4,4.9267]
[1759351969746,2.20646,4331.5,4331.4,3.8869]
[1759351970447,2.20646,4331.5,4331.4,4.506]
[1759351971347,2.20646,4331.5,4331.4,4.9267]
[1759351971650,2.20646,4331.5,4331.4,3.8869]
[1759351971850,2.20646,4331.5,4331.4,4.9267]
[1759351974549,2.20646,4331.5,4331.4,4.3076]
[1759351975255,2.20646,4331.5,4331.4,4.94]
[1759351976264,0.41535,4331.6,4331.4,5.35537]
[1759351976453,0.41535,4331.6,4331.5,1.727]
[1759351982749,0.65133292,4331.8,4331.5,1.727]
[1759351982750,0.41707292,4331.8,4331.6,0.6324]
[1759351982953,0.41707292,4331.8,4331.5,0.2405]
[1759351982954,0.41707292,4331.8,4331.7,2.69310468]
[1759351983450,0.00173292,4331.8,4331.7,3.10844468]
[1759351983762,0.00173292,4331.8,4331.7,2.13384]
[1759351984356,0.00173292,4331.8,4331.7,2.9611214]
[1759351984559,0.41706292,4331.8,4331.7,2.9611214]
[1759351992166,0.41706292,4331.8,4331.7,2.5457814]
[1759351994563,0.41706292,4331.8,4331.7,2.9611214]
[1759351996171,0.00173292,4331.8,4331.7,2.9611214]
[1759351996769,0.41706292,4331.8,4331.7,2.9611214]
[1759351997066,0.00173292,4331.8,4331.7,2.9611214]
[1759351997370,0.00173292,4331.8,4331.7,4.62398522]
[1759351997566,0.00173292,4331.8,4331.7,4.62170814]
[1759351998070,0.00173292,4331.8,4331.7,45.42170814]
[1759352002376,0.00173292,4331.8,4331.7,43.7611214]
[1759352003077,1.0513,4332.7,4332.6,1.466]
[1759352003276,1.55700467,4332.7,4332.6,2.5252814]
[1759352003467,0.6474,4333.0,4332.6,2.5252814]
[1759352003672,0.41524,4332.8,4332.7,1.4423]
[1759352003872,0.80974,4332.8,4332.7,1.4423]
[1759352004075,1.45916504,4332.8,4332.7,1.4423]
[1759352008678,1.86816504,4332.8,4332.7,1.4423]
[1759352013688,1.86816504,4332.8,4332.7,1.6743]
[1759352017281,1.86815504,4332.8,4332.7,1.6743]
[1759352020882,1.86815504,4332.8,4332.7,2.08954]
[1759352021182,1.86815504,4332.8,4332.7,1.6743]
[1759352024292,1.86815504,4332.8,4332.7,1.4883814]
[1759352024589,1.86815504,4332.8,4332.7,2.1076814]
[1759352027106,1.86815504,4332.8,4332.7,2.5015814]
[1759352030807,1.86815504,4332.8,4332.7,1.0592814]
[1759352031109,1.86617,4332.4,4332.3,1.0484]
[1759352031299,1.4509,4332.4,4332.3,2.08958]
[1759352032105,1.4509,4332.4,4332.3,2.9168614]
[1759352032708,1.0419,4332.4,4332.3,2.9168614]
[1759352033109,1.0419,4332.4,4332.3,4.57744814]
[1759352036705,0.00202504,4332.8,4332.5,0.41526]
[1759352036911,1.0272,4332.7,4332.6,1.6361]
[1759352037407,1.44244,4332.7,4332.6,1.6361]
[1759352038011,1.44244,4332.7,4332.6,2.4633814]
[1759352038207,1.0272,4332.7,4332.6,2.8786314]
[1759352038607,1.44244,4332.7,4332.6,2.4633814]
[1759352039814,1.86004,4332.7,4332.6,2.4633814]
[1759352041806,1.4448,4332.7,4332.6,2.8786314]
[1759352042204,0.60132504,4332.8,4332.7,0.5978]
[1759352042408,0.60132504,4332.8,4332.7,1.4051]
[1759352042609,1.44445504,4332.8,4332.7,1.4051]
[1759352043506,1.86205504,4332.8,4332.7,1.6361]
[1759352043705,1.86205504,4332.8,4332.7,4.8439]
[1759352045915,1.44682504,4332.8,4332.7,5.25914]
[1759352046117,1.02922504,4332.8,4332.7,5.25914]
[1759352046317,1.02922504,4332.8,4332.7,6.23243376]
[1759352046518,1.44445504,4332.8,4332.7,6.23243376]
[1759352046917,1.44445504,4332.8,4332.7,5.81719376]
[1759352047418,1.44445504,4332.8,4332.7,6.23243376]
[1759352049615,1.44445504,4332.8,4332.7,5.81719376]
[1759352053421,1.44445504,4332.8,4332.7,6.23243376]
[1759352053815,1.44445504,4332.8,4332.7,5.81719376]
[1759352056123,1.86205504,4332.8,4332.7,3.4388]
[1759352056823,1.86205504,4332.8,4332.7,0.6299]
[1759352057521,1.86205504,4332.8,4332.7,1.2277]
[1759352058517,1.86205504,4332.8,4332.7,0.6299]
[1759352058824,1.86205504,4332.8,4332.7,0.231]
[1759352066726,1.86205504,4332.8,4332.7,0.6242]
[1759352066924,1.86205504,4332.8,4332.7,1.1956]
[1759352071325,1.86205504,4332.8,4332.7,1.6098]
[1759352071526,1.44682504,4332.8,4332.7,1.6098]
[1759352071732,1.44445504,4332.8,4332.7,2.02504]
[1759352072427,0.00202504,4332.8,4332.7,2.02504]
[1759352073332,0.41725504,4332.8,4332.7,2.02504]
[1759352075334,0.41725504,4332.8,4332.7,1.6098]
[1759352077729,0.00202504,4332.8,4332.7,2.02504]
[1759352079135,0.00202504,4332.8,4332.7,3.68562674]
[1759352081334,0.00202504,4332.8,4332.7,2.02504]
[1759352081535,0.9747,4333.9,4333.8,0.3932]
[1759352081839,0.9747,4333.9,4333.8,5.79089376]
[1759352082036,0.9747,4333.9,4333.8,46.59089376]
[1759352082437,0.97674756,4333.9,4333.8,46.59326041]
[1759352082734,1.39187756,4333.9,4333.8,46.59326041]
[1759352083041,1.39187756,4333.9,4333.8,43.38546041]
[1759352083242,1.39187756,4333.9,4333.8,44.6283587]
[1759352083638,1.39187756,4333.9,4333.8,43.38546041]
[1759352086436,0.97674756,4333.9,4333.8,43.38546041]
[1759352086831,0.00204756,4333.9,4333.8,43.80060041]
[1759352088041,0.00204756,4333.9,4333.8,47.00840041]
[1759352088838,0.00204756,4333.9,4333.8,52.00840041]
[1759352091147,0.00204756,4333.9,4333.8,53.24815975]
[1759352092550,0.00204756,4333.9,4333.8,53.01715975]
[1759352092944,0.00204756,4333.9,4333.8,47.00840041]
[1759352093739,0.00204756,4333.9,4333.8,48.24815975]
[1759352094250,0.00204756,4333.9,4333.8,48.01715975]
[1759352094444,0.00204756,4333.9,4333.8,48.24815975]
[1759352094946,0.00204756,4333.9,4333.8,47.00840041]
[1759352096149,0.00204756,4333.9,4333.8,52.00840041]
[1759352097150,0.00204756,4333.9,4333.8,53.24658663]
[1759352098450,0.00204756,4333.9,4333.8,89.23958663]
[1759352099153,0.00204756,4333.9,4333.8,53.01558663]
[1759352099451,0.00204756,4333.9,4333.8,53.24758663]
[1759352102148,0.00204756,4333.9,4333.8,51.77740041]
[1759352102347,0.00204756,4333.9,4333.8,88.00040041]
[1759352108261,0.00204756,4333.9,4333.8,88.67965721]
[1759352108561,0.62384756,4333.9,4333.8,46.63038193]
[1759352108760,0.62384756,4333.9,4333.8,46.86238193]
[1759352109662,0.00204756,4333.9,4333.8,46.86238193]
[1759352109854,0.00204756,4333.9,4333.8,48.52212076]
[1759352111061,0.00204756,4333.9,4333.8,46.86238193]
[1759352111464,0.62384756,4333.9,4333.8,46.86138193]
[1759352115459,0.00204756,4333.9,4333.8,46.86138193]
[1759352115659,0.62384756,4333.9,4333.8,46.86138193]
[1759352118958,0.62384756,4333.9,4333.8,46.44624193]
[1759352119361,0.62384756,4333.9,4333.8,46.21524193]
[1759352119564,0.62384756,4333.9,4333.8,46.44624193]
[1759352119968,0.62384756,4333.9,4333.8,46.86138193]
[1759352120367,0.62384756,4333.9,4333.8,46.44624193]
[1759352120572,0.62384756,4333.9,4333.8,46.86138193]
[1759352120965,0.62384756,4333.9,4333.8,46.21524193]
[1759352121166,0.62384756,4333.9,4333.8,46.44624193]
[1759352121869,0.62384756,4333.9,4333.8,46.86138193]
[1759352122171,0.00204756,4333.9,4333.8,46.86138193]
[1759352123273,0.00204756,4333.9,4333.8,45.38896665]
[1759352123471,0.59554756,4333.9,4333.8,46.21524193]
[1759352123775,0.00204756,4333.9,4333.8,46.44624193]
[1759352128783,0.56044756,4333.9,4333.8,46.44624193]
[1759352129878,0.56044756,4333.9,4333.8,45.38896665]
[1759352130083,0.56044756,4333.9,4333.8,46.21524193]
[1759352130286,0.56044756,4333.9,4333.8,46.44624193]
[1759352132483,0.00204756,4333.9,4333.8,46.44624193]
[1759352133691,0.00204756,4333.9,4333.8,47.27251721]
[1759352133886,0.00204756,4333.9,4333.8,46.44624193]
[1759352135189,0.00204756,4333.9,4333.8,46.86138193]
[1759352137184,0.00204756,4333.9,4333.8,47.68765721]
[1759352137391,0.00204756,4333.9,4333.8,46.86138193]
[1759352137690,0.00204756,4333.9,4333.8,47.68765721]
[1759352151000,0.00204756,4333.9,4333.8,47.45665721]
[1759352151298,0.00204756,4333.9,4333.8,47.68765721]
[1759352153701,0.00204756,4333.9,4333.8,46.86138193]
[1759352153902,0.57214756,4333.9,4333.8,46.86138193]
[1759352156003,0.00204756,4333.9,4333.8,46.86138193]
[1759352157805,0.00204756,4333.9,4333.8,6.06138193]
[1759352159301,0.00204756,4333.9,4333.8,46.86138193]
[1759352159902,0.57214756,4333.9,4333.8,46.86138193]
[1759352160205,0.00204756,4333.9,4333.8,46.86138193]
[1759352162606,0.00204756,4333.9,4333.8,47.68765721]
[1759352163108,0.00204756,4333.9,4333.8,46.86138193]
[1759352163307,0.00204756,4333.9,4333.8,47.68765721]
[1759352163710,0.00204756,4333.9,4333.8,46.86138193]
[1759352164712,0.00204756,4333.9,4333.8,47.68765721]
[1759352166306,0.57214756,4333.9,4333.8,46.86138193]
[1759352167003,0.57214756,4333.9,4333.8,46.44624193]
[1759352167208,0.57214756,4333.9,4333.8,46.86138193]
[1759352168018,0.57214756,4333.9,4333.8,45.80410665]
[1759352168210,0.57214756,4333.9,4333.8,46.86238193]
[1759352169017,0.57214756,4333.9,4333.8,43.65458193]
[1759352169216,0.57214756,4333.9,4333.8,46.86238193]
[1759352170214,0.57214756,4333.9,4333.8,47.00866298]
[1759352175022,0.57214756,4333.9,4333.8,46.77666298]
[1759352175321,0.57214756,4333.9,4333.8,47.00866298]
[1759352176516,0.57214756,4333.9,4333.8,46.59352298]
[1759352179526,0.57214756,4333.9,4333.8,47.00866298]
[1759352180322,0.57214756,4333.9,4333.8,46.59352298]
[1759352183528,0.00204756,4333.9,4333.8,47.00866298]
[1759352187130,0.00204756,4333.9,4333.8,46.59352298]
[1759352187328,0.41717756,4333.9,4333.8,46.59352298]
[1759352187523,1.00647756,4333.9,4333.8,46.59352298]
[1759352188127,1.00647756,4333.9,4333.8,46.59252298]
[1759352194140,1.00647756,4333.9,4333.8,46.36152298]
[1759352194437,1.00647756,4333.9,4333.8,46.59252298]
[1759352196637,1.00647756,4333.9,4333.8,4.58896665]
[1759352196943,1.73407756,4333.9,4333.8,1.04076665]
[1759352197937,1.73407756,4333.9,4333.8,0.62656665]
[1759352198547,1.73407756,4333.9,4333.8,0.23336665]
[1759352198734,6.73407756,4333.9,4333.8,1.24605457]
[1759352198935,6.73407756,4333.9,4333.8,0.00236665]
[1759352199242,6.73407756,4333.9,4333.8,0.23336665]
[1759352199441,1.73407756,4333.9,4333.8,0.23336665]
[1759352199938,0.41516,4333.5,4333.4,1.24368792]
[1759352200244,1.95936,4333.5,4333.4,0.231]
[1759352200541,1.7321,4333.1,4333.0,1.24368792]
[1759352200735,1.95941,4333.0,4332.9,1.61448792]
[1759352200937,1.73211,4333.0,4332.9,2.82358792]
[1759352201135,1.73211,4333.0,4332.9,1.58152299]
[1759352205551,1.73211,4333.0,4332.9,1.35052299]
[1759352205849,1.73211,4333.0,4332.9,1.58152299]
[1759352207046,1.73211,4333.0,4332.3,4.45148792]
[1759352207047,1.14287,4332.4,4332.3,4.45148792]
[1759352207347,1.73217,4332.4,4332.3,4.7877]
[1759352208154,1.73217,4332.4,4332.3,4.78935927]
[1759352211556,1.73217,4332.4,4332.3,5.7619156]
[1759352216762,1.37227,4332.4,4332.3,5.7619156]
[1759352218960,0.41527,4332.4,4332.3,5.7619156]
[1759352226262,0.41527,4332.4,4332.3,7.00560352]
[1759352227163,0.41527,4332.4,4332.3,5.7619156]
[1759352232267,0.41527,4332.4,4332.3,5.61638527]
[1759352235269,0.41527,4332.4,4332.3,4.78935927]
[1759352235469,0.41527,4332.4,4332.3,5.61638527]
[1759352237370,0.41527,4332.4,4332.3,4.78935927]
[1759352237571,1.33427,4332.4,4332.3,5.61638527]
[1759352239498,1.33427,4332.4,4332.3,2.40858527]
[1759352240376,0.41527,4332.4,4332.3,2.40858527]
[1759352245373,0.41527,4332.4,4332.3,5.61638527]
[1759352250373,0.41527,4332.4,4332.3,6.03166527]
[1759352250567,0.41527,4332.4,4332.3,7.69050419]
[1759352250772,0.41527,4332.4,4332.3,7.27522419]
[1759352256181,0.41527,4332.4,4332.3,7.69050419]
[1759352256582,0.41527,4332.4,4332.3,6.03166527]
[1759352256782,0.41526,4332.5,4332.4,1.15157]
[1759352257087,0.97366,4332.5,4332.4,2.107926]
[1759352257289,1.31956,4332.5,4332.4,2.107926]
[1759352259186,1.31956,4332.5,4332.4,2.338926]
[1759352260591,1.31956,4332.5,4332.4,5.546726]
[1759352260791,1.67386,4332.5,4332.4,4.4887]
[1759352261093,1.67386,4332.5,4332.3,0.00165927]
[1759352261094,1.88876,4332.5,4332.3,0.00165927]
[1759352261294,1.88876,4332.5,4332.4,0.231]
[1759352262190,1.88876,4332.5,4332.4,1.47271224]
[1759352262693,1.88876,4332.5,4332.4,0.231]
[1759352262886,1.88876,4332.5,4332.4,1.47316606]
[1759352263281,1.88876,4332.5,4332.4,0.231]
[1759352263282,5.09656,4332.5,4332.4,0.231]
[1759352263487,5.58814574,4332.5,4332.4,0.231]
[1759352263682,5.02974574,4332.5,4332.4,0.231]
[1759352264398,5.58814574,4332.5,4332.4,0.231]
[1759352265193,2.38034574,4332.5,4332.3,0.00165927]
[1759352265393,1.88876,4332.5,4332.4,1.961326]
[1759352265593,1.88876,4332.5,4332.4,1.416726]
[1759352265795,2.38009303,4332.5,4332.4,0.231]
[1759352266489,1.88876,4332.5,4332.4,0.231]
[1759352268894,1.88876,4332.5,4332.4,0.5897]
[1759352272502,1.88876,4332.5,4332.4,0.231]
[1759352277797,1.09737,4332.4,4332.3,0.00165927]
[1759352277996,1.65097,4332.4,4332.3,0.23265927]
[1759352279601,1.65097,4332.4,4332.3,0.57235927]
[1759352280402,1.65097,4332.4,4332.3,1.09055927]
[1759352280593,1.65097,4332.4,4332.3,4.66875927]
[1759352283905,1.65097,4332.4,4332.3,0.94275927]
[1759352285607,1.65097,4332.4,4332.3,0.57235927]
[1759352287405,1.65097,4332.4,4332.3,0.23265927]
[1759352291214,2.14259428,4332.4,4332.3,0.23265927]
[1759352292317,2.14259428,4332.4,4332.3,0.57235927]
[1759352294308,2.14259428,4332.4,4332.3,1.09055927]
[1759352296618,2.14259428,4332.4,4332.3,0.57235927]
[1759352298320,2.14259428,4332.4,4332.3,1.46095927]
[1759352298819,1.30977,4332.4,4332.3,2.70312533]
[1759352300323,0.41527,4332.4,4332.3,2.70312533]
[1759352300618,0.41527,4332.4,4332.3,1.46095927]
[1759352301918,0.41527,4332.4,4332.3,4.66875927]
[1759352302111,0.96997,4332.4,4332.3,4.66875927]
[1759352305722,0.41526,4332.5,4332.4,1.64267]
[1759352305924,0.41526,4332.5,4332.4,4.08606887]
[1759352311417,0.41525,4332.6,4332.5,1.4315]
[1759352311919,0.41525,4332.6,4332.5,2.67021359]
[1759352312121,0.41525,4332.6,4332.5,1.4315]
[1759352314621,0.41524,4332.7,4332.6,0.5091]
[1759352314926,0.41523,4332.8,4332.7,1.64264]
[1759352315128,0.41523,4332.8,4332.7,3.85431727]
[1759352318027,0.41523,4332.8,4332.7,3.43907727]
[1759352318228,0.41523,4332.8,4332.7,3.85431727]
[1759352318430,1.28741,4333.0,4332.9,0.7183]
[1759352318731,1.28741,4333.0,4332.9,1.4584]
[1759352320327,1.64021,4333.0,4332.9,1.4584]
[1759352326734,1.84961,4333.0,4332.9,1.4584]
[1759352327030,1.84961,4333.0,4332.9,0.5968]
[1759352327428,1.84961,4333.0,4332.9,0.231]
[1759352329627,1.84961,4333.0,4332.9,1.1059]
[1759352330032,1.84961,4333.0,4332.9,1.4584]
[1759352330627,0.00204756,4333.9,4333.0,0.2041]
[1759352330832,0.00204756,4333.9,4333.4,0.97368528]
[1759352330833,0.2094,4333.5,4333.4,0.97368528]
[1759352331136,1.31806,4333.5,4333.4,0.231]
[1759352332833,1.84956,4333.5,4333.4,0.231]
[1759352333637,1.1043,4333.1,4333.0,1.23799199]
[1759352333842,1.62562,4332.9,4332.6,1.23799199]
[1759352334138,1.62562,4332.9,4332.8,4.2998]
[1759352334638,1.2104,4332.9,4332.8,5.07893]
[1759352334834,0.8699,4332.9,4332.8,6.31692199]
[1759352336242,1.28512,4332.9,4332.8,6.31692199]
[1759352339242,1.28512,4332.9,4332.8,5.90169199]
[1759352339437,0.5213,4333.1,4333.0,0.41521]
[1759352339645,0.41518,4333.3,4333.2,1.12599]
[1759352339947,1.62555,4333.6,4333.5,0.877]
[1759352340145,1.28505,4333.6,4333.5,1.6737]
[1759352340446,0.41515,4333.6,4333.5,1.6737]
[1759352340643,0.93645,4333.6,4333.5,1.6737]
[1759352340838,0.76577756,4333.9,4333.8,0.7108]
[1759352341038,0.76577756,4333.9,4333.8,2.42958528]
[1759352341545,1.28707756,4333.9,4333.8,2.42958528]
[1759352342245,0.00204756,4333.9,4333.8,2.42958528]
[1759352343241,0.87194756,4333.9,4333.8,2.42958528]
[1759352344847,1.28706756,4333.9,4333.8,2.42958528]
[1759352345742,1.28706756,4333.9,4333.8,2.84471528]
[1759352346043,1.28707756,4333.9,4333.8,2.84471528]
[1759352346850,0.87194756,4333.9,4333.8,2.84471528]
[1759352347548,0.00204756,4333.9,4333.8,2.84471528]
[1759352348042,0.41717756,4333.9,4333.8,2.84471528]
[1759352348238,0.41717756,4333.9,4333.8,2.42958528]
[1759352348438,0.93847756,4333.9,4333.8,2.42958528]
[1759352349949,0.00204756,4333.9,4333.8,2.84471528]
[1759352350249,0.41717756,4333.9,4333.8,2.84471528]
[1759352350452,0.00204756,4333.9,4333.8,2.84471528]
[1759352353852,0.00204756,4333.9,4333.8,43.64471528]
[1759352354247,0.00204756,4333.9,4333.8,43.49746034]
[1759352357753,0.41716756,4333.9,4333.8,43.49746034]
[1759352357954,0.00204756,4333.9,4333.8,43.49746034]
[1759352358346,0.41716756,4333.9,4333.8,43.49746034]
[1759352360157,0.41716756,4333.9,4333.8,44.73468242]
[1759352360658,0.92386756,4333.9,4333.8,42.85033034]
[1759352360857,0.92386756,4333.9,4333.8,43.08233034]
[1759352361252,0.92386756,4333.9,4333.8,43.49746034]
[1759352364856,0.41716756,4333.9,4333.8,43.49746034]
[1759352365361,0.41716756,4333.9,4333.8,44.73468242]
[1759352366653,1.27102,4335.0,4334.9,1.2267]
[1759352366863,1.79942,4335.0,4334.9,2.28513034]
[1759352367359,1.79942,4335.0,4334.9,1.4587]
[1759352367563,1.8018787,4335.0,4334.9,1.4587]
[1759352370361,0.0024587,4335.0,4334.9,5.49293034]
[1759352370565,0.5317587,4335.0,4334.9,5.49293034]
[1759352371065,0.8584587,4335.0,4334.9,5.49293034]
[1759352373362,0.3291587,4335.0,4334.9,5.49293034]
[1759352373665,0.0024587,4335.0,4334.9,5.49293034]
[1759352375968,0.0024587,4335.0,4334.9,5.90796034]
[1759352376470,0.4174787,4335.0,4334.9,4.6665]
[1759352376768,0.4174787,4335.0,4334.9,5.90796034]
[1759352378165,0.4174787,4335.0,4334.9,5.08153]
[1759352378363,0.4174787,4335.0,4334.9,5.90796034]
[1759352380373,0.4174787,4335.0,4334.9,5.67596034]
[1759352380672,0.0024587,4335.0,4334.9,5.90796034]
[1759352381568,0.4174787,4335.0,4334.9,5.90796034]
[1759352381770,0.0024587,4335.0,4334.9,5.90796034]
[1759352382273,0.4174787,4335.0,4334.9,46.70796034]
[1759352382873,0.0024587,4335.0,4334.9,46.70796034]
[1759352383273,0.4174787,4335.0,4334.9,46.70796034]
[1759352384273,0.0024587,4335.0,4334.9,46.70796034]
[1759352389280,0.94423,4336.0,4335.9,1.2267]
[1759352389480,0.94423,4336.0,4335.9,1.4587]
[1759352389778,0.94423,4336.0,4335.9,2.28513034]
[1759352390171,0.94646022,4336.0,4335.9,2.2874943]
[1759352390374,0.41716022,4336.0,4335.9,2.2874943]
[1759352390677,0.41716022,4336.0,4335.9,2.7024243]
[1759352391073,0.41716022,4336.0,4335.9,2.2874943]
[1759352391778,0.41716022,4336.0,4335.9,2.7024243]
[1759352393680,0.00223022,4336.0,4335.9,2.7024243]
[1759352393874,0.41715022,4336.0,4335.9,2.7024243]
[1759352400881,0.41715022,4336.0,4335.9,1.87599396]
[1759352401181,0.41715022,4336.0,4335.9,2.7024243]
[1759352401481,0.89975022,4336.0,4335.9,2.7024243]
[1759352401669,1.25005022,4336.0,4335.9,2.7024243]
[1759352402070,1.25005022,4336.0,4335.9,2.2874943]
[1759352402283,1.60165022,4336.0,4335.9,2.2874943]
[1759352402581,1.79545022,4336.0,4335.9,2.2874943]
[1759352402781,6.79545022,4336.0,4335.8,3.2078]
[1759352402982,0.3516,4334.1,4334.0,0.233]
[1759352403275,1.5996,4334.1,4334.0,0.5836]
[1759352403482,1.5996,4334.1,4334.0,0.233]
[1759352403868,1.5996,4334.1,4334.0,0.23590777]
[1759352407977,1.5996,4334.1,4334.0,1.08220777]
[1759352416384,1.5996,4334.1,4334.0,0.58650777]
[1759352416588,0.4826,4334.6,4334.5,0.3506]
[1759352416793,1.24796,4334.6,4334.5,2.37311378]
[1759352417293,1.59956,4334.6,4334.5,2.37311378]
[1759352428702,1.24796,4334.6,4334.5,2.37311378]
[1759352428902,1.24796,4334.6,4334.5,2.57761378]
[1759352429592,1.59446,4334.6,4334.5,2.37311378]
[1759352430498,1.59446,4334.6,4334.5,2.14011378]
[1759352430707,1.2006,4334.3,4334.2,1.83211378]
[1759352431006,1.61569,4334.3,4334.2,1.83211378]
[1759352431207,1.61569,4334.3,4334.2,2.40211378]
[1759352433106,0.77319,4334.3,4334.2,2.40211378]
[1759352433298,0.41509,4334.3,4334.2,2.40211378]
[1759352436000,0.496,4334.5,4334.2,2.81720378]
[1759352436001,0.41508,4334.4,4334.2,2.81720378]
[1759352436206,0.41508,4334.4,4334.3,1.1963]
[1759352441309,1.26918,4334.4,4334.3,1.1963]
[1759352443610,1.61568,4334.4,4334.3,1.1963]
[1759352443819,1.61568,4334.4,4334.3,2.40211378]